bitfinex/quotes_BTCUSD_20251031
["timestamp","ask_amount","ask_price","bid_price","bid_amount"]
[1761936952262,0.43283681,109580.0,109570.0,0.05102]
[1761936952559,0.003,109580.0,109570.0,0.23355171]
[1761936952743,0.43283681,109580.0,109570.0,0.05102]
[1761936954167,0.003,109580.0,109570.0,0.23355171]
[1761936954374,0.43283681,109580.0,109570.0,0.05102]
[1761936955426,0.61535186,109580.0,109570.0,0.05102]
[1761936955862,0.63091186,109580.0,109570.0,0.05102]
[1761936956135,0.61535186,109580.0,109570.0,0.05102]
[1761936957070,0.43283681,109580.0,109570.0,0.05102]
[1761936957297,0.003,109580.0,109570.0,0.05102]
[1761936957529,0.43283681,109580.0,109570.0,0.05102]
[1761936958747,0.61535186,109580.0,109570.0,0.05102]
[1761936959624,0.18551505,109580.0,109570.0,0.05102]
[1761936959927,0.003,109580.0,109570.0,0.05102]
[1761936960046,0.43283681,109580.0,109570.0,0.05102]
[1761936960453,0.61535186,109580.0,109570.0,0.05102]
[1761936963057,0.003,109580.0,109570.0,0.05102]
[1761936963492,0.003,109580.0,109570.0,0.68158419]
[1761936963702,0.003,109580.0,109570.0,0.66333102]
[1761936963916,0.003,109580.0,109570.0,0.69075972]
[1761936964343,0.001,109580.0,109570.0,0.69075972]
[1761936964727,0.001,109580.0,109570.0,0.69275972]
[1761936965544,0.0002226,109590.0,109580.0,0.18251505]
[1761936965747,0.0002226,109590.0,109580.0,0.23419505]
[1761936966209,0.0002226,109590.0,109580.0,0.26162232]
[1761936968405,0.65085031,109590.0,109570.0,0.0351]
[1761936968609,0.62806031,109590.0,109580.0,0.01592]
[1761936968812,0.62906031,109590.0,109580.0,0.01592]
[1761936969026,0.62806031,109590.0,109580.0,0.01592]
[1761936969244,0.62806031,109590.0,109580.0,0.02808]
[1761936969469,0.62906031,109590.0,109580.0,0.02808]
[1761936969672,0.63206031,109590.0,109580.0,0.02808]
[1761936969878,0.63306031,109590.0,109580.0,0.02808]
[1761936970085,0.63206031,109590.0,109580.0,0.02808]
[1761936972229,0.18251505,109580.0,109570.0,0.0351]
[1761936972586,0.18251505,109580.0,109570.0,0.05102]
[1761936975989,0.29912242,109580.0,109570.0,0.02742]
[1761936976221,0.29912242,109580.0,109560.0,0.00097388]
[1761936976222,0.18253171,109570.0,109560.0,0.00097388]
[1761936976435,0.66360102,109570.0,109560.0,0.00097388]
[1761936977377,0.63885102,109570.0,109560.0,0.02808388]
[1761936977612,0.18253171,109570.0,109560.0,0.05247388]
[1761936978283,0.19880171,109570.0,109560.0,0.05247388]
[1761936978507,0.65632102,109570.0,109560.0,0.02808388]
[1761936978719,0.63158102,109570.0,109560.0,0.02808388]
[1761936978931,0.65632102,109570.0,109560.0,0.00097388]
[1761936979812,1.51691934,109570.0,109560.0,0.00097388]
[1761936980239,1.11458025,109570.0,109560.0,0.00097388]
[1761936985887,1.12890322,109570.0,109560.0,0.00097388]
[1761936987863,1.59486481,109570.0,109560.0,0.00097388]
[1761936988523,1.61447599,109570.0,109560.0,0.00097388]
[1761936988725,1.61347599,109570.0,109560.0,0.00097388]
[1761936988933,1.61547599,109570.0,109560.0,0.00097388]
[1761936989148,1.18269668,109570.0,109560.0,0.00097388]
[1761936989357,1.17337371,109570.0,109560.0,0.00097388]
[1761936989588,1.18769794,109570.0,109560.0,0.00097388]
[1761936989823,1.17337371,109570.0,109560.0,0.00097388]
[1761936990372,0.7435944,109570.0,109560.0,0.00097388]
[1761936990580,1.17337371,109570.0,109560.0,0.00097388]
[1761936991232,1.15376253,109570.0,109560.0,0.00097388]
[1761936992029,1.58354184,109570.0,109560.0,0.00097388]
[1761936992289,1.65034673,109570.0,109560.0,0.00097388]
[1761936992723,1.66467103,109570.0,109560.0,0.00097388]
[1761936997244,1.68428207,109570.0,109560.0,0.00097388]
[1761936998918,1.70131068,109570.0,109560.0,0.00097388]
[1761937000223,1.70131068,109570.0,109540.0,0.02637227]
[1761937000224,0.52256503,109550.0,109540.0,0.02637227]
[1761937000438,1.08671761,109550.0,109540.0,0.02637227]
[1761937000674,1.11145761,109550.0,109540.0,0.02637227]
[1761937001178,1.56760919,109550.0,109540.0,0.02637227]
[1761937001403,1.47467769,109540.0,109530.0,0.0004]
[1761937001633,0.81064722,109540.0,109530.0,0.0004]
[1761937002076,1.68724507,109540.0,109530.0,0.0004]
[1761937002717,1.69524507,109540.0,109530.0,0.0004]
[1761937003134,1.70457216,109540.0,109530.0,0.0004]
[1761937003341,1.68724507,109540.0,109530.0,0.0004]
[1761937003676,1.70456901,109540.0,109530.0,0.0004]
[1761937004540,1.71156901,109540.0,109530.0,0.0004]
[1761937004947,0.85201039,109540.0,109530.0,0.0004]
[1761937005168,1.71156901,109540.0,109530.0,0.0004]
[1761937006465,1.7258961,109540.0,109530.0,0.0004]
[1761937006689,0.74033619,109540.0,109530.0,0.0004]
[1761937006911,1.15307627,109540.0,109530.0,0.0010683]
[1761937007139,1.13344941,109540.0,109530.0,0.0010683]
[1761937009127,1.13244941,109540.0,109530.0,0.0010683]
[1761937009333,4.13344941,109540.0,109530.0,0.0010683]
[1761937009537,4.22226842,109540.0,109530.0,0.0010683]
[1761937009740,4.11912232,109540.0,109530.0,0.0010683]
[1761937009858,4.11612232,109540.0,109530.0,0.0010683]
[1761937010062,4.11512232,109540.0,109530.0,0.0010683]
[1761937010266,4.10912232,109540.0,109530.0,0.0010683]
[1761937010668,4.11112232,109540.0,109530.0,0.0010683]
[1761937010884,4.11212232,109540.0,109530.0,0.0010683]
[1761937011087,4.11112232,109540.0,109530.0,0.0010683]
[1761937011489,4.20194133,109540.0,109530.0,0.0010683]
[1761937011880,4.20094133,109540.0,109530.0,0.0010683]
[1761937012319,3.77216202,109540.0,109530.0,0.0010683]
[1761937012535,4.20194133,109540.0,109530.0,0.0010683]
[1761937012756,4.21626742,109540.0,109530.0,0.0010683]
[1761937013555,4.10070841,109540.0,109530.0,0.0169783]
[1761937013911,4.10170841,109540.0,109530.0,0.0169783]
[1761937014110,3.90467932,109540.0,109530.0,0.0169783]
[1761937014352,4.11097102,109540.0,109530.0,0.0010683]
[1761937014554,4.10997102,109540.0,109530.0,0.0010683]
[1761937014755,4.11097102,109540.0,109530.0,0.0010683]
[1761937015248,3.3556391,109540.0,109530.0,0.0010683]
[1761937015569,3.78441841,109540.0,109530.0,0.0010683]
[1761937015766,3.78541841,109540.0,109530.0,0.0010683]
[1761937016112,4.28206589,109540.0,109530.0,0.0010683]
[1761937016328,4.33631049,109540.0,109530.0,0.0010683]
[1761937016551,4.38342374,109540.0,109530.0,0.0010683]
[1761937017156,4.38042374,109540.0,109530.0,0.0010683]
[1761937017575,4.38742374,109540.0,109530.0,0.0010683]
[1761937017990,3.85359398,109540.0,109530.0,0.0010683]
[1761937018411,3.85559398,109540.0,109530.0,0.0010683]
[1761937019164,3.84659398,109540.0,109530.0,0.0010683]
[1761937019369,3.81260796,109540.0,109530.0,0.0010683]
[1761937019594,3.79115679,109540.0,109530.0,0.0010683]
[1761937020185,3.79015679,109540.0,109530.0,0.0010683]
[1761937020862,3.79115679,109540.0,109530.0,0.0010683]
[1761937021257,3.8809758,109540.0,109530.0,0.0010683]
[1761937021378,4.36660454,109540.0,109530.0,0.0010683]
[1761937021588,4.38092735,109540.0,109530.0,0.0010683]
[1761937022029,3.95114804,109540.0,109530.0,0.0010683]
[1761937022845,3.82514675,109540.0,109530.0,0.0010683]
[1761937023083,3.8044796,109540.0,109530.0,0.0010683]
[1761937023296,3.78741728,109540.0,109530.0,0.0010683]
[1761937023495,4.21800677,109540.0,109530.0,0.0010683]
[1761937023740,0.31960188,109540.0,109530.0,0.0169783]
[1761937023969,0.74978628,109540.0,109530.0,0.0516883]
[1761937024429,0.74978628,109540.0,109530.0,0.0289983]
[1761937024643,0.01632281,109540.0,109530.0,0.3916883]
[1761937024862,0.01632281,109540.0,109530.0,0.23428667]
[1761937024863,0.01432281,109540.0,109530.0,0.23428667]
[1761937025112,0.01432281,109540.0,109530.0,1.00447107]
[1761937025342,0.01532281,109540.0,109530.0,1.00447107]
[1761937026004,4.813e-05,109550.0,109540.0,0.21876398]
[1761937026219,4.813e-05,109550.0,109540.0,1.11773278]
[1761937026668,4.813e-05,109550.0,109540.0,1.11573278]
[1761937026876,4.813e-05,109550.0,109540.0,1.45573278]
[1761937027287,4.813e-05,109550.0,109540.0,1.46273278]
[1761937027471,4.813e-05,109550.0,109540.0,1.09071585]
[1761937027709,4.813e-05,109550.0,109540.0,0.5661817]
[1761937028578,4.813e-05,109550.0,109540.0,0.5681817]
[1761937029231,4.813e-05,109550.0,109540.0,1.05653357]
[1761937029441,4.813e-05,109550.0,109540.0,1.04953357]
[1761937029660,4.813e-05,109550.0,109540.0,0.5611817]
[1761937029868,4.813e-05,109550.0,109540.0,1.05353357]
[1761937030277,4.813e-05,109550.0,109540.0,1.08096792]
[1761937031307,4.813e-05,109550.0,109540.0,1.08196792]
[1761937031515,4.813e-05,109550.0,109540.0,0.41347984]
[1761937031764,4.813e-05,109550.0,109540.0,0.59606154]
[1761937032183,4.813e-05,109550.0,109540.0,0.25606154]
[1761937033771,0.18261316,109550.0,109540.0,0.07347984]
[1761937033988,4.813e-05,109550.0,109540.0,0.04604549]
[1761937034473,4.813e-05,109550.0,109540.0,0.04004549]
[1761937034696,0.18261316,109550.0,109540.0,0.03904549]
[1761937034913,0.72213503,109550.0,109540.0,0.00144549]
[1761937035129,0.23378316,109550.0,109540.0,0.00144549]
[1761937035559,0.23378316,109550.0,109540.0,0.00044549]
[1761937035776,0.23378316,109550.0,109540.0,0.00344549]
[1761937035994,0.23478316,109550.0,109540.0,0.00344549]
[1761937036409,0.23478316,109550.0,109540.0,0.00044549]
[1761937036531,0.23378316,109550.0,109540.0,0.00144549]
[1761937036736,0.20990316,109550.0,109540.0,0.01724549]
[1761937037105,0.18261316,109550.0,109540.0,0.04078549]
[1761937037301,0.20990316,109550.0,109540.0,0.01724549]
[1761937037470,0.23378316,109550.0,109540.0,0.00144549]
[1761937038100,0.72313503,109550.0,109540.0,0.00144549]
[1761937038318,1.06213503,109550.0,109540.0,0.00144549]
[1761937038519,1.06313503,109550.0,109540.0,0.00144549]
[1761937039044,1.06313503,109550.0,109540.0,0.00044549]
[1761937039505,1.06413503,109550.0,109540.0,0.00044549]
[1761937039687,1.06513503,109550.0,109540.0,0.00044549]
[1761937047410,1.00689827,109550.0,109540.0,0.00044549]
[1761937049067,1.43701338,109550.0,109540.0,0.00044549]
[1761937050382,0.57678316,109550.0,109540.0,0.00044549]
[1761937050614,1.43701338,109550.0,109540.0,0.00044549]
[1761937050830,1.00689827,109550.0,109540.0,0.00044549]
[1761937051475,1.00689827,109550.0,109540.0,0.02681776]
[1761937051706,1.43701338,109550.0,109540.0,0.02681776]
[1761937060493,1.45671209,109550.0,109540.0,0.02681776]
[1761937061187,1.45672137,109550.0,109540.0,0.02681776]
[1761937062509,1.4738372,109550.0,109540.0,0.02681776]
[1761937063372,1.47384636,109550.0,109540.0,0.02681776]
[1761937063643,0.61361614,109550.0,109540.0,0.02681776]
[1761937063853,1.47384636,109550.0,109540.0,0.02681776]
[1761937064752,1.47384636,109550.0,109540.0,0.05352776]
[1761937064753,0.55586115,109550.0,109540.0,0.05352776]
[1761937065014,0.00204813,109550.0,109540.0,0.68890457]
[1761937065233,0.00204813,109550.0,109540.0,0.25878946]
[1761937065449,0.00204813,109550.0,109540.0,0.68890457]
[1761937065889,0.00104813,109550.0,109540.0,0.68890457]
[1761937066531,4.813e-05,109550.0,109540.0,0.68890457]
[1761937066745,4.813e-05,109550.0,109540.0,1.12001968]
[1761937066956,4.813e-05,109550.0,109540.0,1.12101968]
[1761937067161,4.813e-05,109550.0,109540.0,0.69090457]
[1761937067336,4.813e-05,109550.0,109540.0,1.12001968]
[1761937067741,4.813e-05,109550.0,109540.0,1.12601968]
[1761937068294,4.813e-05,109550.0,109540.0,1.50220196]
[1761937068420,4.813e-05,109550.0,109540.0,1.93231707]
[1761937068622,4.813e-05,109550.0,109540.0,0.64197174]
[1761937068853,4.813e-05,109550.0,109540.0,1.50220196]
[1761937069241,4.813e-05,109550.0,109540.0,1.03590457]
[1761937069456,4.813e-05,109550.0,109540.0,1.03490457]
[1761937069669,4.813e-05,109550.0,109540.0,1.02890457]
[1761937069883,4.813e-05,109550.0,109540.0,1.03990457]
[1761937070108,4.813e-05,109550.0,109540.0,0.69990457]
[1761937070314,4.813e-05,109550.0,109540.0,0.69190457]
[1761937070729,4.813e-05,109550.0,109540.0,0.69790457]
[1761937071121,4.813e-05,109550.0,109540.0,0.69490457]
[1761937071735,4.813e-05,109550.0,109540.0,0.26478946]
[1761937072562,4.813e-05,109550.0,109540.0,0.69090457]
[1761937072788,4.813e-05,109550.0,109540.0,0.68890457]
[1761937072995,4.813e-05,109550.0,109540.0,0.69090457]
[1761937073558,4.813e-05,109550.0,109540.0,1.12101968]
[1761937074785,4.813e-05,109550.0,109540.0,1.92731707]
[1761937074962,4.813e-05,109550.0,109540.0,1.49720196]
[1761937076056,4.813e-05,109550.0,109540.0,1.92531707]
[1761937076226,4.813e-05,109550.0,109540.0,1.92731707]
[1761937076482,4.813e-05,109550.0,109540.0,1.50520196]
[1761937076696,4.813e-05,109550.0,109540.0,1.93531707]
[1761937079514,4.813e-05,109550.0,109540.0,1.50520196]
[1761937079954,4.813e-05,109550.0,109540.0,1.65460196]
[1761937083602,4.813e-05,109550.0,109540.0,1.22407043]
[1761937083865,4.813e-05,109550.0,109540.0,1.07467043]
[1761937084354,4.813e-05,109550.0,109540.0,1.65376912]
[1761937084843,4.813e-05,109550.0,109540.0,1.22407043]
[1761937085953,4.813e-05,109550.0,109540.0,1.238386]
[1761937086386,4.813e-05,109550.0,109540.0,5.73864467]
[1761937087259,4.813e-05,109550.0,109540.0,5.95346157]
[1761937087484,4.813e-05,109550.0,109540.0,6.23376026]
[1761937087708,5.37e-06,109550.0,109540.0,6.07593739]
[1761937087943,5.37e-06,109550.0,109540.0,6.38609136]
[1761937088164,5.37e-06,109550.0,109540.0,5.92053739]
[1761937088581,5.37e-06,109550.0,109540.0,5.92853739]
[1761937088813,5.37e-06,109550.0,109540.0,5.93253739]
[1761937089463,5.37e-06,109550.0,109540.0,5.81807588]
[1761937089863,5.37e-06,109550.0,109540.0,5.88761996]
[1761937090338,5.37e-06,109550.0,109540.0,5.90061996]
[1761937091264,0.0008292,109580.0,109570.0,1.33364984]
[1761937091487,0.0008292,109580.0,109570.0,4.34904984]
[1761937091707,0.0008292,109580.0,109570.0,4.37172984]
[1761937092152,1e-08,109580.0,109570.0,4.43706056]
[1761937092572,1e-08,109580.0,109570.0,4.44506056]
[1761937092778,1e-08,109580.0,109570.0,4.44306056]
[1761937092910,1e-08,109580.0,109570.0,4.43906056]
[1761937093119,1e-08,109580.0,109570.0,4.37372984]
[1761937093321,1e-08,109580.0,109570.0,4.44702389]
[1761937094101,1e-08,109580.0,109570.0,4.38172984]
[1761937094306,1e-08,109580.0,109570.0,4.44703523]
[1761937094510,1e-08,109580.0,109570.0,4.43903523]
[1761937094970,1e-08,109580.0,109570.0,4.45203523]
[1761937095212,1e-08,109580.0,109570.0,4.41385295]
[1761937095358,1e-08,109580.0,109570.0,4.35254756]
[1761937095567,1e-08,109580.0,109570.0,1.00254757]
[1761937095985,1e-08,109580.0,109570.0,0.98954757]
[1761937096186,1e-08,109580.0,109570.0,1.32554757]
[1761937096441,1e-08,109580.0,109570.0,1.33154757]
[1761937096587,1e-08,109580.0,109570.0,1.35972986]
[1761937096998,1e-08,109580.0,109570.0,1.35772986]
[1761937097670,1e-08,109580.0,109570.0,1.35172986]
[1761937097846,1e-08,109580.0,109570.0,1.36172985]
[1761937097997,1e-08,109580.0,109570.0,4.35572986]
[1761937098285,1e-08,109580.0,109570.0,4.35672986]
[1761937098623,1e-08,109580.0,109570.0,4.36672985]
[1761937098834,1e-08,109580.0,109570.0,4.36272985]
[1761937099006,1e-08,109580.0,109570.0,4.36172985]
[1761937099215,1e-08,109580.0,109570.0,4.35772986]
[1761937099402,1e-08,109580.0,109570.0,4.36972985]
[1761937100260,0.16810403,109630.0,109620.0,0.00601]
[1761937100463,0.18605832,109630.0,109620.0,0.02116]
[1761937100680,0.16823598,109630.0,109620.0,0.02116]
[1761937101442,1.07004972,109640.0,109620.0,0.02116]
[1761937101663,0.19898243,109630.0,109620.0,0.02116]
[1761937102005,0.20810402,109630.0,109620.0,0.02116]
[1761937102218,0.18244845,109620.0,109610.0,0.01137]
[1761937102422,0.29053582,109620.0,109610.0,0.01150195]
[1761937102626,0.29053582,109620.0,109610.0,0.02665195]
[1761937103337,0.28811382,109620.0,109610.0,0.02665195]
[1761937104780,0.28911382,109620.0,109610.0,0.02665195]
[1761937104980,0.28811382,109620.0,109610.0,0.02665195]
[1761937105519,0.19899845,109620.0,109610.0,0.02665195]
[1761937105752,0.18244845,109620.0,109610.0,0.04987195]
[1761937105986,0.20697699,109630.0,109610.0,0.04987195]
[1761937106199,0.54586437,109630.0,109620.0,0.01515]
[1761937106410,0.35431035,109630.0,109620.0,0.03837]
[1761937106650,0.53674216,109630.0,109620.0,0.03837]
[1761937107092,0.19674216,109630.0,109620.0,0.03837]
[1761937107325,0.21329216,109630.0,109620.0,0.01515]
[1761937107519,0.21329216,109630.0,109620.0,0.03837]
[1761937107939,0.19674216,109630.0,109620.0,0.03837]
[1761937108378,0.21329216,109630.0,109620.0,0.03837]
[1761937108536,0.21329216,109630.0,109620.0,0.01515]
[1761937109069,0.19674216,109630.0,109620.0,0.03837]
[1761937109518,0.01431035,109630.0,109620.0,0.03837]
[1761937111185,0.01431035,109630.0,109620.0,0.22081845]
[1761937111388,0.01431035,109630.0,109620.0,0.03837]
[1761937111823,0.01542297,109630.0,109620.0,0.03837]
[1761937112451,0.01542297,109630.0,109620.0,0.22081845]
[1761937112659,0.01542297,109630.0,109620.0,0.03837]
[1761937112863,0.19785478,109630.0,109620.0,0.03837]
[1761937113231,0.21440478,109630.0,109620.0,0.01515]
[1761937113868,0.21440478,109630.0,109610.0,0.03472195]
[1761937114066,0.03086035,109630.0,109620.0,0.01515]
[1761937114417,0.03086035,109630.0,109620.0,0.03837]
[1761937114418,0.01431035,109630.0,109620.0,0.03837]
[1761937114640,0.19674216,109630.0,109620.0,0.03837]
[1761937114857,0.21440478,109630.0,109620.0,0.01515]
[1761937115366,0.21440478,109630.0,109610.0,0.03472195]
[1761937115591,0.21329216,109630.0,109620.0,0.01515]
[1761937115830,0.21329216,109630.0,109620.0,0.03837]
[1761937116508,0.21329216,109630.0,109620.0,0.01515]
[1761937117370,0.21329216,109630.0,109620.0,0.03837]
[1761937117371,0.01431035,109630.0,109620.0,0.03837]
[1761937117577,0.19674216,109630.0,109620.0,0.03837]
[1761937118124,0.21329216,109630.0,109620.0,0.01515]
[1761937118764,0.21329216,109630.0,109620.0,0.03837]
[1761937118765,0.19674216,109630.0,109620.0,0.03837]
[1761937118985,0.01431035,109630.0,109620.0,0.03837]
[1761937119237,0.19674216,109630.0,109620.0,0.03837]
[1761937119745,0.21329216,109630.0,109620.0,0.01515]
[1761937121339,0.21329216,109630.0,109620.0,0.02652]
[1761937121743,0.22354478,109630.0,109620.0,0.02652]
[1761937122416,0.22354478,109630.0,109610.0,0.03472195]
[1761937122626,0.01431035,109630.0,109620.0,0.04974]
[1761937122833,0.19674216,109630.0,109620.0,0.04974]
[1761937123259,0.21313216,109630.0,109620.0,0.02652]
[1761937124777,0.21413216,109630.0,109620.0,0.02652]
[1761937124988,0.21313216,109630.0,109620.0,0.02652]
[1761937125981,0.01431035,109630.0,109620.0,1.25045]
[1761937126184,0.01431035,109630.0,109620.0,1.43289845]
[1761937131882,0.01431035,109630.0,109620.0,1.25045]
[1761937132086,0.01431035,109630.0,109620.0,1.43289845]
[1761937132291,0.01542297,109630.0,109620.0,1.43289845]
[1761937133316,0.01542297,109630.0,109620.0,1.25045]
[1761937134368,0.01542297,109630.0,109620.0,1.43289845]
[1761937134814,0.01542297,109630.0,109620.0,1.8622232]
[1761937135271,0.01542297,109630.0,109620.0,1.25045]
[1761937135476,0.01542297,109630.0,109620.0,1.43289845]
[1761937137212,0.00111262,109630.0,109620.0,1.43289845]
[1761937138582,0.27264484,109650.0,109640.0,0.02663]
[1761937138779,0.45504378,109650.0,109640.0,0.02663]
[1761937140187,0.45504378,109650.0,109640.0,0.0506]
[1761937140389,0.25625484,109650.0,109640.0,0.0506]
[1761937140593,0.01430827,109650.0,109640.0,0.0506]
[1761937140797,0.01430827,109650.0,109640.0,0.47992475]
[1761937141005,0.01430827,109650.0,109640.0,0.0506]
[1761937142847,0.01430827,109650.0,109640.0,0.23301517]
[1761937143044,0.01430827,109650.0,109640.0,0.66233992]
[1761937143546,0.01430827,109650.0,109640.0,1.09113239]
[1761937143690,0.01430827,109650.0,109640.0,0.66207378]
[1761937143883,0.01430827,109650.0,109640.0,0.47965861]
[1761937144491,0.65174029,109650.0,109640.0,0.02663]
[1761937144870,0.18241517,109640.0,109630.0,0.03546]
[1761937145116,0.71940115,109640.0,109630.0,0.02663]
[1761937146044,0.62786378,109640.0,109630.0,0.0506]
[1761937146305,0.19880517,109640.0,109630.0,0.0506]
[1761937146547,0.19980517,109640.0,109630.0,0.0506]
[1761937146779,0.19880517,109640.0,109630.0,0.02663]
[1761937147221,0.18241517,109640.0,109630.0,0.0506]
[1761937147442,3.0,109640.0,109630.0,0.0506]
[1761937147666,3.0,109640.0,109630.0,0.47965861]
[1761937147889,0.01430827,109650.0,109630.0,0.66209012]
[1761937148102,0.01430827,109650.0,109640.0,0.03911]
[1761937148347,0.01430827,109650.0,109640.0,0.46816861]
[1761937149255,0.01430827,109650.0,109640.0,0.03911]
[1761937150647,0.01430827,109650.0,109640.0,0.52676022]
[1761937150840,0.01430827,109650.0,109640.0,0.70917539]
[1761937151442,0.01475314,109650.0,109640.0,0.70917539]
[1761937152484,0.01475314,109650.0,109640.0,0.22152517]
[1761937153672,0.01475314,109650.0,109640.0,0.70917539]
[1761937154301,0.02906443,109650.0,109640.0,0.70917539]
[1761937154800,0.00044487,109650.0,109640.0,0.22152517]
[1761937155035,0.00044487,109650.0,109640.0,0.70917539]
[1761937156026,0.00044487,109650.0,109640.0,1.53682561]
[1761937156212,0.00044487,109650.0,109640.0,1.04917539]
[1761937156418,0.00044487,109650.0,109640.0,1.08535767]
[1761937157425,0.00044487,109650.0,109640.0,1.08635767]
[1761937158234,0.00044487,109650.0,109640.0,1.05017539]
[1761937160983,0.00044487,109650.0,109640.0,0.04011]
[1761937162034,0.00044487,109650.0,109640.0,0.03911]
[1761937162452,0.02324468,109650.0,109640.0,0.03911]
[1761937162657,0.18284341,109650.0,109640.0,0.03911]
[1761937163294,0.00044487,109650.0,109640.0,0.03911]
[1761937163521,0.18284341,109650.0,109640.0,0.03911]
[1761937163731,0.2145149,109650.0,109640.0,0.03911]
[1761937163943,0.19198341,109650.0,109640.0,0.03911]
[1761937164588,0.00044487,109650.0,109640.0,0.22152517]
[1761937165711,0.00044487,109650.0,109640.0,0.03911]
[1761937165975,0.00044487,109650.0,109640.0,0.52676022]
[1761937166158,0.00044487,109650.0,109640.0,0.22152517]
[1761937166403,0.00044487,109650.0,109640.0,0.03911]
[1761937167094,0.00044487,109650.0,109640.0,0.22152517]
[1761937169775,0.00044487,109650.0,109640.0,0.03911]
[1761937170005,0.00044487,109650.0,109640.0,0.22152517]
[1761937170898,0.00044487,109650.0,109640.0,0.03911]
[1761937171306,0.01475044,109650.0,109640.0,0.03911]
[1761937171523,0.01475044,109650.0,109640.0,0.22152517]
[1761937171954,0.01475044,109650.0,109640.0,0.03911]
[1761937172166,0.01475044,109650.0,109640.0,0.22152517]
[1761937172405,0.01475044,109650.0,109640.0,0.03911]
[1761937173482,0.01475044,109650.0,109640.0,0.22152517]
[1761937175290,0.01475044,109650.0,109640.0,0.03911]
[1761937175480,0.01475044,109650.0,109640.0,0.46825287]
[1761937175704,0.01475044,109650.0,109640.0,0.65066804]
[1761937175915,0.01475044,109650.0,109640.0,0.22152517]
[1761937176121,0.01475044,109650.0,109640.0,0.65066804]
[1761937177904,0.01475044,109650.0,109640.0,0.46825287]
[1761937178778,0.03996044,109650.0,109640.0,0.01514]
[1761937178984,0.02389044,109650.0,109640.0,0.04012]
[1761937179333,0.01475044,109650.0,109640.0,0.04012]
[1761937179730,0.01475044,109650.0,109640.0,0.46926287]
[1761937179956,0.01475044,109650.0,109640.0,0.04012]
[1761937181449,0.03082044,109650.0,109640.0,0.04012]
[1761937181655,0.03996044,109650.0,109640.0,0.01514]
[1761937181869,0.20628898,109650.0,109640.0,0.04012]
[1761937182091,0.02389044,109650.0,109640.0,0.04012]
[1761937182311,0.20628898,109650.0,109640.0,0.04012]
[1761937182531,0.65150185,109650.0,109640.0,0.01514]
[1761937182750,0.74303922,109650.0,109640.0,0.0157]
[1761937183203,0.74303922,109650.0,109640.0,0.04068]
[1761937184309,0.74303922,109650.0,109640.0,0.0157]
[1761937184732,0.74403922,109650.0,109640.0,0.0157]
[1761937185159,0.74331922,109650.0,109640.0,0.0157]
[1761937185806,0.74231922,109650.0,109640.0,0.0157]
[1761937186016,0.74331922,109650.0,109640.0,0.0157]
[1761937186376,0.74331922,109650.0,109640.0,0.02778]
[1761937186765,0.74231922,109650.0,109640.0,0.02778]
[1761937186966,0.72696922,109650.0,109640.0,0.02778]
[1761937187213,0.19714898,109650.0,109640.0,0.05053]
[1761937187413,0.62629185,109650.0,109640.0,0.05053]
[1761937187625,0.64264185,109650.0,109640.0,0.02778]
[1761937188575,0.64164185,109650.0,109640.0,0.02778]
[1761937188749,0.64264185,109650.0,109640.0,0.02778]
[1761937189159,0.64164185,109650.0,109640.0,0.02778]
[1761937189369,0.64164185,109650.0,109630.0,0.03424]
[1761937189579,0.18241517,109640.0,109630.0,0.03424]
[1761937189747,0.18263763,109640.0,109630.0,0.03424]
[1761937189935,0.00022246,109640.0,109630.0,0.05043]
[1761937190130,0.66024239,109640.0,109630.0,0.02768]
[1761937190448,0.6374405,109640.0,109630.0,0.02768]
[1761937190648,0.6384405,109640.0,109630.0,0.02768]
[1761937190849,0.6374405,109640.0,109630.0,0.05043]
[1761937191062,0.6384405,109640.0,109630.0,0.05043]
[1761937191447,0.6374405,109640.0,109630.0,0.05043]
[1761937191879,0.6384405,109640.0,109630.0,0.05043]
[1761937192376,0.6374405,109640.0,109630.0,0.05043]
[1761937192557,0.6384405,109640.0,109630.0,0.02768]
[1761937192759,0.6384405,109640.0,109630.0,0.05043]
[1761937193609,0.6374405,109640.0,109630.0,0.05043]
[1761937193807,0.6374405,109640.0,109630.0,0.02768]
[1761937194057,0.6568805,109640.0,109620.0,1.23408]
[1761937194208,0.6384405,109640.0,109630.0,0.02827]
[1761937194388,0.19294763,109640.0,109630.0,0.05102]
[1761937194597,0.6220905,109640.0,109630.0,0.05102]
[1761937195083,0.6230905,109640.0,109630.0,0.05102]
[1761937195551,0.63640325,109640.0,109630.0,0.05102]
[1761937195755,0.65275325,109640.0,109630.0,0.02827]
[1761937195963,0.63740325,109640.0,109630.0,0.02827]
[1761937196170,0.63640325,109640.0,109630.0,0.05102]
[1761937196375,0.63740325,109640.0,109630.0,0.05102]
[1761937196785,0.63640325,109640.0,109630.0,0.05102]
[1761937197515,0.6230905,109640.0,109630.0,0.05102]
[1761937197729,0.6220905,109640.0,109630.0,0.05102]
[1761937198364,0.6230905,109640.0,109630.0,0.05102]
[1761937198582,0.6220905,109640.0,109630.0,0.05102]
[1761937198790,0.6374405,109640.0,109630.0,0.05102]
[1761937199000,0.6374405,109640.0,109630.0,0.01208]
[1761937199225,0.18243181,109630.0,109620.0,1.23408]
[1761937199434,0.19778181,109630.0,109620.0,1.22752]
[1761937199665,0.18243181,109630.0,109620.0,1.25027]
[1761937199876,0.19674028,109630.0,109620.0,1.25027]
[1761937200323,0.64123315,109630.0,109620.0,1.22752]
[1761937200571,0.64123315,109630.0,109620.0,1.19996]
[1761937200572,0.66167315,109630.0,109620.0,1.19996]
[1761937200792,0.66067315,109630.0,109620.0,1.19996]
[1761937201047,1.00067315,109630.0,109620.0,1.19996]
[1761937201281,1.00167315,109630.0,109620.0,1.19996]
[1761937201515,4.55997991,109630.0,109620.0,1.19996]
[1761937201965,4.02157803,109630.0,109620.0,1.21615]
[1761937202242,4.04001803,109630.0,109620.0,1.19996]
[1761937202672,4.04201803,109630.0,109620.0,1.19996]
[1761937203144,4.04001803,109630.0,109620.0,1.19996]
[1761937203363,4.04201803,109630.0,109620.0,1.19996]
[1761937203896,4.04301803,109630.0,109620.0,1.19996]
[1761937204105,4.04201803,109630.0,109620.0,1.19996]
[1761937204557,4.04301803,109630.0,109620.0,1.19996]
[1761937205470,4.0423771,109630.0,109620.0,1.19996]
[1761937206155,4.0433771,109630.0,109620.0,1.19996]
[1761937207699,4.50906132,109630.0,109620.0,1.19996]
[1761937208134,4.07955938,109630.0,109620.0,1.19996]
[1761937208618,4.52873182,109630.0,109620.0,1.16033286]
[1761937208837,4.52873182,109630.0,109620.0,0.76534105]
[1761937210404,4.52873182,109630.0,109620.0,0.13752256]
[1761937210645,3.3111681,109620.0,109610.0,0.00096075]
[1761937210858,4.21410198,109620.0,109610.0,0.00096075]
[1761937211295,4.55410198,109620.0,109610.0,0.00096075]
[1761937211735,4.57375731,109620.0,109610.0,0.00096075]
[1761937211950,4.60518779,109620.0,109610.0,0.00096075]